[Event "Live Chess"]
[Site "Chess.com"]
[Date "2023.05.20"]
[Round "-"]
[White "Krishtwist2013gmailc"]
[Black "ethanredball"]
[Result "0-1"]
[WhiteElo "636"]
[BlackElo "664"]
[TimeControl "300"]
[EndTime "9:27:28 PDT"]
[Termination "ethanredball won by resignation"]

1. d4 {[%clk 0:04:56.1]} 1... d5 {[%clk 0:04:58.1]} 2. Nf3 {[%clk 0:04:54.6]}
2... Nf6 {[%clk 0:04:55.6]} 3. e4 {[%clk 0:04:53.7]} 3... dxe4 {[%clk
0:04:53.8]} 4. Ne5 {[%clk 0:04:49]} 4... e6 {[%clk 0:04:48.2]} 5. Bb5+ {[%clk
0:04:43.5]} 5... Bd7 {[%clk 0:04:44.3]} 6. Bxd7+ {[%clk 0:04:40.5]} 6... Nbxd7
{[%clk 0:04:42.8]} 7. Nxd7 {[%clk 0:04:39.3]} 7... Qxd7 {[%clk 0:04:41.1]} 8.
Qe2 {[%clk 0:04:38.3]} 8... O-O-O {[%clk 0:04:38.5]} 9. Be3 {[%clk 0:04:36.9]}
9... Bb4+ {[%clk 0:04:33.3]} 10. Nc3 {[%clk 0:04:34.3]} 10... Bxc3+ {[%clk
0:04:31.9]} 11. bxc3 {[%clk 0:04:31.9]} 11... Kb8 {[%clk 0:04:31]} 12. O-O
{[%clk 0:04:30.6]} 12... a6 {[%clk 0:04:29.6]} 13. d5 {[%clk 0:04:28.8]} 13...
exd5 {[%clk 0:04:26.6]} 14. c4 {[%clk 0:04:19]} 14... d4 {[%clk 0:04:24.5]} 15.
Bf4 {[%clk 0:04:16]} 15... h5 {[%clk 0:04:21.8]} 16. Rad1 {[%clk 0:04:11.6]}
16... Qe7 {[%clk 0:04:17.3]} 17. Bg5 {[%clk 0:04:02.8]} 17... h4 {[%clk
0:04:13.4]} 18. Bxf6 {[%clk 0:03:59.7]} 18... Qxf6 {[%clk 0:04:10.3]} 19. Qxe4
{[%clk 0:03:45.5]} 19... Qg5 {[%clk 0:03:56.7]} 20. Rxd4 {[%clk 0:03:32.3]}
20... Rxd4 {[%clk 0:03:54.6]} 21. Qxd4 {[%clk 0:03:29.1]} 21... h3 {[%clk
0:03:52.5]} 22. g3 {[%clk 0:03:27.6]} 22... Rd8 {[%clk 0:03:39.5]} 23. Qe3
{[%clk 0:03:17.9]} 23... Qxe3 {[%clk 0:03:35.2]} 24. fxe3 {[%clk 0:03:16.9]}
24... Re8 {[%clk 0:03:33.4]} 25. Rxf7 {[%clk 0:03:15]} 25... Rxe3 {[%clk
0:03:31.2]} 26. Rf8+ {[%clk 0:03:13]} 26... Ka7 {[%clk 0:03:29.7]} 27. Rf1
{[%clk 0:03:03.4]} 27... Rc3 {[%clk 0:03:27.6]} 28. Rf7 {[%clk 0:02:52.1]} 28...
Rxc2 {[%clk 0:03:25.1]} 29. Rxg7 {[%clk 0:02:50.9]} 29... Rxc4 {[%clk
0:03:22.7]} 30. Kf2 {[%clk 0:02:49]} 30... Ra4 {[%clk 0:03:20.8]} 31. Rxc7
{[%clk 0:02:44.5]} 31... Rxa2+ {[%clk 0:03:18.7]} 32. Kf3 {[%clk 0:02:43.1]}
32... Rxh2 {[%clk 0:03:16.9]} 33. g4 {[%clk 0:02:41.8]} 33... Rg2 {[%clk
0:03:14.3]} 34. Rh7 {[%clk 0:02:37.4]} 34... Rb2 {[%clk 0:03:02.9]} 35. g5
{[%clk 0:02:32.5]} 35... a5 {[%clk 0:03:01]} 36. g6 {[%clk 0:02:31.3]} 36... Rg2
{[%clk 0:02:58.6]} 37. Rh6 {[%clk 0:02:26.7]} 37... a4 {[%clk 0:02:57.3]} 38.
Rh7 {[%clk 0:02:24]} 38... a3 {[%clk 0:02:56.2]} 39. g7 {[%clk 0:02:23]} 39...
a2 {[%clk 0:02:54]} 40. Rh8 {[%clk 0:01:46]} 40... a1=Q {[%clk 0:02:50.4]} 41.
g8=Q {[%clk 0:01:44.8]} 41... Rxg8 {[%clk 0:02:47.4]} 42. Rxg8 {[%clk
0:01:43.2]} 42... h2 {[%clk 0:02:44.3]} 43. Rh8 {[%clk 0:01:40.7]} 43... h1=Q+
{[%clk 0:02:42.3]} 44. Rxh1 {[%clk 0:01:39.6]} 44... Qxh1+ {[%clk 0:02:41.6]}
0-1

[Event "Live Chess"]
[Site "Chess.com"]
[Date "2023.05.20"]
[Round "-"]
[White "Ocelot32"]
[Black "Duke_of_Bebington"]
[Result "1-0"]
[WhiteElo "1384"]
[BlackElo "1551"]
[TimeControl "300"]
[EndTime "9:27:34 PDT"]
[Termination "Ocelot32 won by checkmate"]

1. e4 {[%clk 0:04:54]} 1... e5 {[%clk 0:04:54.9]} 2. Nf3 {[%clk 0:04:50.9]} 2...
Nf6 {[%clk 0:04:52.9]} 3. Nxe5 {[%clk 0:04:48.4]} 3... d6 {[%clk 0:04:51.3]} 4.
Nf3 {[%clk 0:04:46]} 4... Nxe4 {[%clk 0:04:50.1]} 5. Bc4 {[%clk 0:04:44]} 5...
d5 {[%clk 0:04:43]} 6. Bb3 {[%clk 0:04:41.8]} 6... Bd6 {[%clk 0:04:31.5]} 7. d3
{[%clk 0:04:39.6]} 7... Nf6 {[%clk 0:04:29.1]} 8. O-O {[%clk 0:04:38.2]} 8...
O-O {[%clk 0:04:23.3]} 9. Bg5 {[%clk 0:04:35.6]} 9... Be6 {[%clk 0:04:20.6]} 10.
Nc3 {[%clk 0:04:30.8]} 10... Nbd7 {[%clk 0:04:16.8]} 11. Bxd5 {[%clk 0:04:19.4]}
11... c6 {[%clk 0:03:58.7]} 12. Bxe6 {[%clk 0:04:11.5]} 12... fxe6 {[%clk
0:03:58.6]} 13. Ne4 {[%clk 0:04:08.7]} 13... Be7 {[%clk 0:03:45.1]} 14. Qe2
{[%clk 0:04:03.5]} 14... Qc7 {[%clk 0:03:43.2]} 15. Nxf6+ {[%clk 0:03:58]} 15...
Nxf6 {[%clk 0:03:39.8]} 16. Qxe6+ {[%clk 0:03:56.5]} 16... Kh8 {[%clk 0:03:37]}
17. Rfe1 {[%clk 0:03:54.7]} 17... Rae8 {[%clk 0:03:34.9]} 18. Bxf6 {[%clk
0:03:44.7]} 18... Rxf6 {[%clk 0:03:22.5]} 19. Qc4 {[%clk 0:03:24.4]} 19... Rff8
{[%clk 0:03:07.5]} 20. Ne5 {[%clk 0:03:21.2]} 20... Bf6 {[%clk 0:02:59.7]} 21.
d4 {[%clk 0:02:57]} 21... Qd6 {[%clk 0:02:55.1]} 22. Re3 {[%clk 0:02:52.9]}
22... Re7 {[%clk 0:02:50.1]} 23. Ng6+ {[%clk 0:02:43.1]} 23... hxg6 {[%clk
0:02:47.7]} 24. Rh3+ {[%clk 0:02:42]} 24... Bh4 {[%clk 0:02:46.2]} 25. Rxh4#
{[%clk 0:02:41.2]} 1-0

[Event "Live Chess"]
[Site "Chess.com"]
[Date "2023.05.20"]
[Round "-"]
[White "omisoc"]
[Black "PackedNote"]
[Result "1-0"]
[WhiteElo "2087"]
[BlackElo "780"]
[TimeControl "300"]
[EndTime "9:27:34 PDT"]
[Termination "omisoc won by resignation"]

1. b3 {[%clk 0:04:55.2]} 1... e5 {[%clk 0:04:58]} 2. Bb2 {[%clk 0:04:53.5]} 2...
Nc6 {[%clk 0:04:56.8]} 3. e3 {[%clk 0:04:51.2]} 3... Nf6 {[%clk 0:04:54.2]} 4.
c4 {[%clk 0:04:49.5]} 4... d6 {[%clk 0:04:50]} 5. a3 {[%clk 0:04:47.9]} 5... g6
{[%clk 0:04:48.9]} 6. Nf3 {[%clk 0:04:46.1]} 6... Bg7 {[%clk 0:04:45.1]} 7. d4
{[%clk 0:04:44.9]} 7... exd4 {[%clk 0:04:44.2]} 8. exd4 {[%clk 0:04:43.5]} 8...
Bg4 {[%clk 0:04:41.8]} 9. Be2 {[%clk 0:04:41.9]} 9... O-O {[%clk 0:04:39.3]} 10.
O-O {[%clk 0:04:40.1]} 10... Qd7 {[%clk 0:04:31.5]} 11. d5 {[%clk 0:04:34.6]}
11... Ne5 {[%clk 0:04:24.7]} 12. Nxe5 {[%clk 0:04:31.1]} 12... Bxe2 {[%clk
0:04:21.4]} 13. Nxd7 {[%clk 0:04:27.1]} 13... Bxd1 {[%clk 0:04:13.6]} 14. Nxf6+
{[%clk 0:04:24.2]} 14... Bxf6 {[%clk 0:04:10.9]} 15. Bxf6 {[%clk 0:04:22.8]}
15... Bxb3 {[%clk 0:04:06.8]} 16. Nd2 {[%clk 0:04:21.1]} 16... Bc2 {[%clk
0:03:57.2]} 17. Rfe1 {[%clk 0:04:17]} 17... Bf5 {[%clk 0:03:45.9]} 18. f3 {[%clk
0:04:14.7]} 18... c6 {[%clk 0:03:43.6]} 19. g4 {[%clk 0:04:13.4]} 19... Bd7
{[%clk 0:03:40.9]} 20. Ne4 {[%clk 0:04:11.4]} 20... Rfe8 {[%clk 0:03:31.4]} 21.
Nxd6 {[%clk 0:04:08]} 21... Rxe1+ {[%clk 0:03:27.6]} 22. Rxe1 {[%clk 0:04:07.9]}
22... cxd5 {[%clk 0:03:18.8]} 23. cxd5 {[%clk 0:04:05.7]} 23... b5 {[%clk
0:03:15.9]} 24. Re7 {[%clk 0:04:03.1]} 1-0

[Event "Live Chess"]
[Site "Chess.com"]
[Date "2023.05.20"]
[Round "-"]
[White "Fazer180"]
[Black "CheckThis4"]
[Result "0-1"]
[WhiteElo "1731"]
[BlackElo "2535"]
[TimeControl "300"]
[EndTime "9:27:42 PDT"]
[Termination "CheckThis4 won on time"]

1. e4 {[%clk 0:04:58.2]} 1... d5 {[%clk 0:04:55.5]} 2. exd5 {[%clk 0:04:56.6]}
2... Nf6 {[%clk 0:04:54]} 3. Nc3 {[%clk 0:04:56.5]} 3... Nxd5 {[%clk 0:04:52.1]}
4. Nxd5 {[%clk 0:04:53.9]} 4... Qxd5 {[%clk 0:04:50.2]} 5. d4 {[%clk 0:04:47.5]}
5... Nc6 {[%clk 0:04:42.2]} 6. Nf3 {[%clk 0:04:43.5]} 6... Bg4 {[%clk
0:04:32.9]} 7. c3 {[%clk 0:04:33]} 7... e5 {[%clk 0:04:25.2]} 8. Be2 {[%clk
0:04:12.2]} 8... O-O-O {[%clk 0:04:14.9]} 9. O-O {[%clk 0:03:42.6]} 9... exd4
{[%clk 0:04:04.8]} 10. cxd4 {[%clk 0:03:30.4]} 10... Be7 {[%clk 0:03:46.3]} 11.
Be3 {[%clk 0:03:24.1]} 11... Bf6 {[%clk 0:03:42.6]} 12. h3 {[%clk 0:03:21.4]}
12... h5 {[%clk 0:03:31.1]} 13. Qa4 {[%clk 0:03:04.7]} 13... Kb8 {[%clk
0:03:23.1]} 14. Rfd1 {[%clk 0:02:40.3]} 14... Bd7 {[%clk 0:03:13.3]} 15. Bc4
{[%clk 0:02:38.1]} 15... Qe4 {[%clk 0:03:03.7]} 16. Bxf7 {[%clk 0:02:33.9]}
16... Ne5 {[%clk 0:02:40.8]} 17. Bd5 {[%clk 0:02:19.2]} 17... Qxd5 {[%clk
0:02:33.7]} 18. dxe5 {[%clk 0:02:17.4]} 18... Bxa4 {[%clk 0:02:30.9]} 19. Rxd5
{[%clk 0:02:12.8]} 19... Rxd5 {[%clk 0:02:29.7]} 20. exf6 {[%clk 0:02:12.5]}
20... gxf6 {[%clk 0:02:29.3]} 21. b3 {[%clk 0:02:08.8]} 21... Bc6 {[%clk
0:02:27.6]} 22. Nd4 {[%clk 0:02:02.8]} 22... Bd7 {[%clk 0:02:24.2]} 23. Rc1
{[%clk 0:01:54.1]} 23... Rg8 {[%clk 0:02:21.1]} 24. Kh1 {[%clk 0:01:52.3]} 24...
c5 {[%clk 0:02:15.4]} 25. Ne2 {[%clk 0:01:48]} 25... b6 {[%clk 0:02:11.4]} 26.
Nf4 {[%clk 0:01:46.6]} 26... Rf5 {[%clk 0:02:04.2]} 27. Rd1 {[%clk 0:01:41.5]}
27... Bc6 {[%clk 0:02:01.7]} 28. Rd6 {[%clk 0:01:30.8]} 28... Kb7 {[%clk
0:02:00.6]} 29. a4 {[%clk 0:01:15.4]} 29... h4 {[%clk 0:01:58.6]} 30. Rd2 {[%clk
0:01:06.9]} 30... Re5 {[%clk 0:01:42.8]} 31. Rd3 {[%clk 0:00:59.7]} 31... Rf5
{[%clk 0:01:38]} 32. f3 {[%clk 0:00:58.4]} 32... Re5 {[%clk 0:01:33.4]} 33. Bf2
{[%clk 0:00:44.2]} 33... c4 {[%clk 0:01:32.4]} 34. bxc4 {[%clk 0:00:42.6]} 34...
Ra5 {[%clk 0:01:31.2]} 35. Nd5 {[%clk 0:00:38.2]} 35... Rxa4 {[%clk 0:01:20.7]}
36. Nxf6 {[%clk 0:00:35.5]} 36... Rg6 {[%clk 0:01:18.6]} 37. Bxh4 {[%clk
0:00:33.3]} 37... Ra1+ {[%clk 0:01:15.4]} 38. Kh2 {[%clk 0:00:32.2]} 38... Ra2
{[%clk 0:01:15]} 39. Ng4 {[%clk 0:00:28.1]} 39... Bxf3 {[%clk 0:01:12.7]} 40.
Rxf3 {[%clk 0:00:26.1]} 40... a5 {[%clk 0:01:07.7]} 41. Rf7+ {[%clk 0:00:22.1]}
41... Ka6 {[%clk 0:01:05.1]} 42. Kg3 {[%clk 0:00:21]} 42... a4 {[%clk
0:01:04.2]} 43. Kf4 {[%clk 0:00:20]} 43... Rxg2 {[%clk 0:01:02.1]} 44. Kf5
{[%clk 0:00:18.6]} 44... Rc6 {[%clk 0:01:00.4]} 45. Rf6 {[%clk 0:00:16.4]} 45...
Rxc4 {[%clk 0:00:54.9]} 46. Ne3 {[%clk 0:00:15.6]} 46... Rc5+ {[%clk 0:00:54.2]}
47. Ke6 {[%clk 0:00:12.7]} 47... Re2 {[%clk 0:00:52.1]} 48. Kd6 {[%clk
0:00:07.9]} 48... Rxe3 {[%clk 0:00:49.7]} 49. Bf2 {[%clk 0:00:05.6]} 49... Rd3+
{[%clk 0:00:48.9]} 50. Ke7 {[%clk 0:00:04]} 50... Re5+ {[%clk 0:00:47]} 51. Kf7
{[%clk 0:00:02.9]} 51... Rb5 {[%clk 0:00:45.6]} 52. h4 {[%clk 0:00:01.6]} 52...
a3 {[%clk 0:00:44.5]} 0-1

[Event "Live Chess"]
[Site "Chess.com"]
[Date "2023.05.20"]
[Round "-"]
[White "bedsdrout"]
[Black "MizYanKo"]
[Result "0-1"]
[WhiteElo "100"]
[BlackElo "603"]
[TimeControl "300"]
[EndTime "9:27:55 PDT"]
[Termination "MizYanKo won by checkmate"]

1. e4 {[%clk 0:04:55.9]} 1... d5 {[%clk 0:04:57.7]} 2. Nc3 {[%clk 0:04:52.4]}
2... Qd6 {[%clk 0:04:51.7]} 3. d3 {[%clk 0:04:49.8]} 3... e5 {[%clk 0:04:49.9]}
4. d4 {[%clk 0:04:43.5]} 4... Qf6 {[%clk 0:04:47.9]} 5. dxe5 {[%clk 0:04:31.7]}
5... Qxe5 {[%clk 0:04:44.2]} 6. Nf3 {[%clk 0:04:15.8]} 6... Qf6 {[%clk
0:04:37.6]} 7. g3 {[%clk 0:04:08.6]} 7... Bc5 {[%clk 0:04:35]} 8. Bf4 {[%clk
0:04:07.3]} 8... Bb6 {[%clk 0:04:11.2]} 9. Qd3 {[%clk 0:03:57.9]} 9... Qc6
{[%clk 0:04:07.9]} 10. exd5 {[%clk 0:03:53.3]} 10... Qd6 {[%clk 0:04:04.8]} 11.
Qe4+ {[%clk 0:03:51.4]} 11... Qe7 {[%clk 0:03:59.1]} 12. Ne5 {[%clk 0:03:44.9]}
12... Nf6 {[%clk 0:03:54.9]} 13. Qf3 {[%clk 0:03:35.8]} 13... O-O {[%clk
0:03:53.8]} 14. O-O-O {[%clk 0:03:15.9]} 14... Qc5 {[%clk 0:03:29.3]} 15. Ne4
{[%clk 0:03:13.1]} 15... Qxd5 {[%clk 0:03:25.7]} 16. Rxd5 {[%clk 0:03:05.8]}
16... Nxd5 {[%clk 0:03:21.9]} 17. Nd7 {[%clk 0:02:53.8]} 17... Bxd7 {[%clk
0:03:19.4]} 18. Be5 {[%clk 0:02:51.9]} 18... Nc6 {[%clk 0:03:13.2]} 19. Bc4
{[%clk 0:02:27.3]} 19... Nxe5 {[%clk 0:03:01.3]} 20. Qh5 {[%clk 0:02:23.3]}
20... Nxc4 {[%clk 0:02:57.7]} 21. Ng5 {[%clk 0:02:19.8]} 21... Rfe8 {[%clk
0:02:53.4]} 22. Qxh7+ {[%clk 0:02:10.6]} 22... Kf8 {[%clk 0:02:52.9]} 23. Kd1
{[%clk 0:01:59.7]} 23... Nf6 {[%clk 0:02:50.3]} 24. Qh4 {[%clk 0:01:52.4]} 24...
Re4 {[%clk 0:02:44.7]} 25. f3 {[%clk 0:01:44.7]} 25... Re3 {[%clk 0:02:32.4]}
26. Re1 {[%clk 0:01:33.9]} 26... Bc6 {[%clk 0:02:14]} 27. Rxe3 {[%clk 0:01:31]}
27... Nxe3+ {[%clk 0:02:10.8]} 28. Ke2 {[%clk 0:01:24.5]} 28... Rd8 {[%clk
0:02:03.4]} 29. Qh8+ {[%clk 0:01:20.7]} 29... Ke7 {[%clk 0:01:59.9]} 30. Qxg7
{[%clk 0:01:11.7]} 30... Bb5+ {[%clk 0:01:49.1]} 31. Kf2 {[%clk 0:00:59.7]}
31... Bc4 {[%clk 0:01:41.1]} 32. Qxf7+ {[%clk 0:00:58.1]} 32... Bxf7 {[%clk
0:01:38.9]} 33. Nh7 {[%clk 0:00:49.2]} 33... Nxh7 {[%clk 0:01:35.5]} 34. c4
{[%clk 0:00:44.3]} 34... Rd2+ {[%clk 0:01:28.1]} 35. Ke1 {[%clk 0:00:39.3]}
35... Ba5 {[%clk 0:01:23.8]} 36. f4 {[%clk 0:00:22.3]} 36... Rxh2+ {[%clk
0:01:05.8]} 37. b4 {[%clk 0:00:18.7]} 37... Bxb4# {[%clk 0:01:03.4]} 0-1

[Event "Live Chess"]
[Site "Chess.com"]
[Date "2023.05.20"]
[Round "-"]
[White "smoggyrabbit"]
[Black "DenDenTie"]
[Result "0-1"]
[WhiteElo "1632"]
[BlackElo "1545"]
[TimeControl "300"]
[EndTime "9:27:56 PDT"]
[Termination "DenDenTie won on time"]

1. d4 {[%clk 0:04:59.4]} 1... d5 {[%clk 0:04:58.1]} 2. Nf3 {[%clk 0:04:58.5]}
2... Nc6 {[%clk 0:04:56.2]} 3. e3 {[%clk 0:04:57.1]} 3... Nf6 {[%clk 0:04:53.7]}
4. b3 {[%clk 0:04:49.8]} 4... Bg4 {[%clk 0:04:48.5]} 5. Bb2 {[%clk 0:04:42.7]}
5... Bxf3 {[%clk 0:04:45.8]} 6. Qxf3 {[%clk 0:04:41.2]} 6... e6 {[%clk
0:04:43.9]} 7. a3 {[%clk 0:04:24.8]} 7... Bd6 {[%clk 0:04:41.3]} 8. Bd3 {[%clk
0:04:23.6]} 8... O-O {[%clk 0:04:36.1]} 9. O-O {[%clk 0:04:18.9]} 9... e5 {[%clk
0:04:18.2]} 10. Qd1 {[%clk 0:04:05.3]} 10... e4 {[%clk 0:04:08.4]} 11. Be2
{[%clk 0:04:03.5]} 11... Re8 {[%clk 0:03:46.1]} 12. c4 {[%clk 0:04:01.2]} 12...
dxc4 {[%clk 0:03:43.8]} 13. bxc4 {[%clk 0:03:59.4]} 13... Ne7 {[%clk 0:03:42]}
14. Nc3 {[%clk 0:03:54.8]} 14... Ng6 {[%clk 0:03:37.8]} 15. Qb3 {[%clk 0:03:35]}
15... b6 {[%clk 0:03:30]} 16. Rad1 {[%clk 0:03:19.1]} 16... Rb8 {[%clk
0:03:21.3]} 17. Nb5 {[%clk 0:02:20.5]} 17... Be7 {[%clk 0:03:06.6]} 18. Nxa7
{[%clk 0:02:10.4]} 18... Qd7 {[%clk 0:02:50.3]} 19. Nb5 {[%clk 0:01:40.6]} 19...
Qe6 {[%clk 0:02:10.3]} 20. Nxc7 {[%clk 0:01:32.2]} 20... Qd7 {[%clk 0:01:49.7]}
21. Nxe8 {[%clk 0:01:30.7]} 21... Qxe8 {[%clk 0:01:48.4]} 22. Qc2 {[%clk
0:01:11.3]} 22... Rc8 {[%clk 0:01:35.6]} 23. d5 {[%clk 0:00:33.3]} 23... Qd7
{[%clk 0:01:08.2]} 24. Bxf6 {[%clk 0:00:27]} 24... Bxf6 {[%clk 0:01:04.9]} 25.
Qxe4 {[%clk 0:00:25.2]} 25... Re8 {[%clk 0:00:58.7]} 26. Qc2 {[%clk 0:00:19.8]}
26... Rc8 {[%clk 0:00:52.3]} 27. Qb3 {[%clk 0:00:18.6]} 27... Ne5 {[%clk
0:00:43]} 28. Rc1 {[%clk 0:00:16.7]} 28... Qc7 {[%clk 0:00:21]} 29. Rfd1 {[%clk
0:00:12.2]} 29... Qa7 {[%clk 0:00:15.2]} 30. d6 {[%clk 0:00:10.7]} 30... Rd8
{[%clk 0:00:14.2]} 31. Rd5 {[%clk 0:00:07.8]} 31... Bg5 {[%clk 0:00:12.4]} 32.
c5 {[%clk 0:00:07]} 32... Nc6 {[%clk 0:00:10.9]} 33. cxb6 {[%clk 0:00:05.3]}
33... Qb7 {[%clk 0:00:09.6]} 34. Rcd1 {[%clk 0:00:03]} 34... Na5 {[%clk
0:00:06.9]} 35. d7 {[%clk 0:00:02.4]} 35... Nxb3 {[%clk 0:00:05.9]} 36. R1d3
{[%clk 0:00:01]} 36... Qxb6 {[%clk 0:00:04.9]} 37. Rd6 {[%clk 0:00:00.7]} 37...
Qxd6 {[%clk 0:00:03.9]} 0-1

[Event "Live Chess"]
[Site "Chess.com"]
[Date "2023.05.20"]
[Round "-"]
[White "jagbama"]
[Black "Kony20"]
[Result "0-1"]
[WhiteElo "1117"]
[BlackElo "1332"]
[TimeControl "300"]
[EndTime "9:27:58 PDT"]
[Termination "Kony20 won on time"]

1. e4 {[%clk 0:04:57.9]} 1... e5 {[%clk 0:04:56.5]} 2. Nf3 {[%clk 0:04:57.1]}
2... Nc6 {[%clk 0:04:54.4]} 3. Bc4 {[%clk 0:04:55.1]} 3... Nf6 {[%clk
0:04:53.7]} 4. Ng5 {[%clk 0:04:52]} 4... d5 {[%clk 0:04:52.1]} 5. exd5 {[%clk
0:04:47.4]} 5... Na5 {[%clk 0:04:47.2]} 6. Qe2 {[%clk 0:04:25.2]} 6... Nxc4
{[%clk 0:04:45.2]} 7. Qxc4 {[%clk 0:04:24]} 7... Qxd5 {[%clk 0:04:43.1]} 8. Qxc7
{[%clk 0:04:18.7]} 8... Bd6 {[%clk 0:04:34.9]} 9. c4 {[%clk 0:03:58.5]} 9...
Bxc7 {[%clk 0:04:30.8]} 10. cxd5 {[%clk 0:03:57.4]} 10... Nxd5 {[%clk
0:04:30.7]} 11. O-O {[%clk 0:03:56.1]} 11... f6 {[%clk 0:04:17.3]} 12. Nf3
{[%clk 0:03:53.9]} 12... e4 {[%clk 0:04:05.9]} 13. Nd4 {[%clk 0:03:40.4]} 13...
Be5 {[%clk 0:04:02.6]} 14. Nc3 {[%clk 0:03:37.2]} 14... Bxd4 {[%clk 0:04:00.8]}
15. Nxd5 {[%clk 0:03:35.9]} 15... Bb6 {[%clk 0:03:55.8]} 16. Re1 {[%clk
0:03:20.8]} 16... f5 {[%clk 0:03:44.6]} 17. d3 {[%clk 0:03:15.6]} 17... Be6
{[%clk 0:03:28.4]} 18. Nxb6 {[%clk 0:03:03.5]} 18... axb6 {[%clk 0:03:28.3]} 19.
dxe4 {[%clk 0:03:02.6]} 19... f4 {[%clk 0:03:25.9]} 20. Bxf4 {[%clk 0:02:59.3]}
20... O-O {[%clk 0:03:24.8]} 21. Bc7 {[%clk 0:02:43.7]} 21... b5 {[%clk
0:03:22.4]} 22. b3 {[%clk 0:02:39.7]} 22... Rf7 {[%clk 0:03:18.7]} 23. Bg3
{[%clk 0:02:33.5]} 23... b6 {[%clk 0:03:11.2]} 24. e5 {[%clk 0:02:32.2]} 24...
Rfa7 {[%clk 0:03:09.3]} 25. Re2 {[%clk 0:02:17.8]} 25... Bxb3 {[%clk 0:03:06.4]}
26. Rb1 {[%clk 0:02:13.6]} 26... Bxa2 {[%clk 0:03:00.9]} 27. Ra1 {[%clk
0:02:12.2]} 27... Bc4 {[%clk 0:02:59.1]} 28. Rxa7 {[%clk 0:02:10.9]} 28... Rxa7
{[%clk 0:02:59]} 29. Re1 {[%clk 0:02:05.9]} 29... b4 {[%clk 0:02:52]} 30. f4
{[%clk 0:02:04.5]} 30... b3 {[%clk 0:02:51.2]} 31. Rb1 {[%clk 0:02:01.8]} 31...
Ra2 {[%clk 0:02:44.1]} 32. Be1 {[%clk 0:01:58.2]} 32... b2 {[%clk 0:02:42.8]}
33. Bc3 {[%clk 0:01:55.9]} 33... Bd3 {[%clk 0:02:37.8]} 34. Rxb2 {[%clk
0:01:50]} 34... Ra1+ {[%clk 0:02:37.1]} 35. Kf2 {[%clk 0:01:49.1]} 35... Rf1+
{[%clk 0:02:35.7]} 36. Kg3 {[%clk 0:01:47.6]} 36... b5 {[%clk 0:02:29]} 37. e6
{[%clk 0:01:30]} 37... Kf8 {[%clk 0:02:27.9]} 38. Bb4+ {[%clk 0:01:28.5]} 38...
Ke8 {[%clk 0:02:26]} 39. e7 {[%clk 0:01:25.9]} 39... Bg6 {[%clk 0:02:14.8]} 40.
Bd6 {[%clk 0:01:14.3]} 40... Kd7 {[%clk 0:02:09.9]} 41. Rd2 {[%clk 0:01:07]}
41... Ke6 {[%clk 0:02:05]} 42. Bb4 {[%clk 0:00:58.9]} 42... Bf7 {[%clk
0:01:55.2]} 43. Rd8 {[%clk 0:00:45.7]} 43... Rb1 {[%clk 0:01:51.4]} 44. e8=Q+
{[%clk 0:00:43.3]} 44... Bxe8 {[%clk 0:01:50.5]} 45. Rxe8+ {[%clk 0:00:42.4]}
45... Kd7 {[%clk 0:01:48.2]} 46. Re4 {[%clk 0:00:37.9]} 46... Rb3+ {[%clk
0:01:47]} 47. Kg4 {[%clk 0:00:35.8]} 47... Rb2 {[%clk 0:01:45.3]} 48. Kf3 {[%clk
0:00:30.9]} 48... Rb3+ {[%clk 0:01:44.2]} 49. Kg4 {[%clk 0:00:24.4]} 49... Rb2
{[%clk 0:01:41.1]} 50. Rd4+ {[%clk 0:00:22.3]} 50... Ke6 {[%clk 0:01:37.6]} 51.
Bd2 {[%clk 0:00:19.5]} 51... Rb3 {[%clk 0:01:32]} 52. g3 {[%clk 0:00:16.7]}
52... g6 {[%clk 0:01:29.5]} 53. h4 {[%clk 0:00:15.9]} 53... Kf6 {[%clk
0:01:24.7]} 54. h5 {[%clk 0:00:13.5]} 54... gxh5+ {[%clk 0:01:22.7]} 55. Kxh5
{[%clk 0:00:12.9]} 55... Rxg3 {[%clk 0:01:20.5]} 56. Rd6+ {[%clk 0:00:10.4]}
56... Ke7 {[%clk 0:01:18.5]} 57. Bb4 {[%clk 0:00:08.4]} 57... Kf7 {[%clk
0:01:16.9]} 58. f5 {[%clk 0:00:07.3]} 58... Rh3+ {[%clk 0:01:16]} 59. Kg4 {[%clk
0:00:06.2]} 59... Rb3 {[%clk 0:01:15.5]} 60. Rd4 {[%clk 0:00:04]} 60... Rb1
{[%clk 0:01:11.5]} 61. Bc3 {[%clk 0:00:03.2]} 61... Rg1+ {[%clk 0:01:10.4]} 62.
Kh5 {[%clk 0:00:01.6]} 62... Rh1+ {[%clk 0:01:09.6]} 63. Kg4 {[%clk 0:00:01]}
63... Rc1 {[%clk 0:01:09.1]} 0-1

[Event "Live Chess"]
[Site "Chess.com"]
[Date "2023.05.20"]
[Round "-"]
[White "chessleanstrategist"]
[Black "Greenbecker"]
[Result "0-1"]
[WhiteElo "416"]
[BlackElo "1705"]
[TimeControl "300"]
[EndTime "9:28:02 PDT"]
[Termination "Greenbecker won by checkmate"]

1. c4 {[%clk 0:04:57.4]} 1... Nf6 {[%clk 0:04:58.3]} 2. g3 {[%clk 0:04:55.1]}
2... g6 {[%clk 0:04:56.8]} 3. Nf3 {[%clk 0:04:53.6]} 3... Bg7 {[%clk 0:04:56]}
4. Nc3 {[%clk 0:04:49.6]} 4... O-O {[%clk 0:04:54]} 5. b3 {[%clk 0:04:48.4]}
5... d6 {[%clk 0:04:46.4]} 6. Bb2 {[%clk 0:04:47.1]} 6... Nc6 {[%clk 0:04:43.8]}
7. d4 {[%clk 0:04:42]} 7... Bf5 {[%clk 0:04:40.7]} 8. e3 {[%clk 0:04:34.3]} 8...
Nb4 {[%clk 0:04:35.8]} 9. Be2 {[%clk 0:04:20.8]} 9... Nc2+ {[%clk 0:04:33.1]}
10. Kf1 {[%clk 0:04:07.1]} 10... Nxa1 {[%clk 0:04:30.9]} 11. Bxa1 {[%clk
0:04:06]} 11... Ne4 {[%clk 0:04:24.3]} 12. Nxe4 {[%clk 0:04:02.5]} 12... Bxe4
{[%clk 0:04:23.2]} 13. Bd3 {[%clk 0:03:57.3]} 13... Bxd3+ {[%clk 0:04:20.4]} 14.
Qxd3 {[%clk 0:03:57]} 14... e5 {[%clk 0:04:17.3]} 15. Kg2 {[%clk 0:03:34.6]}
15... exd4 {[%clk 0:04:11.3]} 16. Bxd4 {[%clk 0:03:30]} 16... Bxd4 {[%clk
0:04:09.5]} 17. Nxd4 {[%clk 0:03:27.7]} 17... Qe7 {[%clk 0:04:01.7]} 18. Re1
{[%clk 0:03:24.8]} 18... Rfe8 {[%clk 0:03:56.8]} 19. Qe2 {[%clk 0:03:20]} 19...
Rad8 {[%clk 0:03:41.2]} 20. Kf1 {[%clk 0:03:10.9]} 20... Qe4 {[%clk 0:03:32.4]}
21. Nb5 {[%clk 0:02:51.2]} 21... Qh1# {[%clk 0:03:29.2]} 0-1